fUSD/lending_fUSD_20250923
["ID","MTS","AMOUNT","RATE_DAILY","PERIOD"]
[387127940,1758587511759,-132.49442619,0.00021911,2]
[387127941,1758587511768,-400.0,0.00021911,2]
[387127942,1758587511778,-400.0,0.00021911,2]
[387127943,1758587511787,-400.0,0.00021911,2]
[387127944,1758587511796,-400.0,0.00021911,2]
[387127945,1758587511805,-400.0,0.00021911,2]
[387127946,1758587511814,-400.0,0.00021911,2]
[387127947,1758587511823,-618.95,0.00021911,2]
[387127948,1758587511833,-1569.63,0.00021911,2]
[387127949,1758587511843,-399.83769471,0.00021911,2]
[387127950,1758587511854,-400.0,0.00021911,2]
[387127951,1758587511863,-400.0,0.00021911,2]
[387127952,1758587511872,-400.0,0.00021911,2]
[387127953,1758587511881,-418.7,0.00021911,2]
[387127954,1758587511890,-284.26165749,0.00021911,2]
[387127955,1758587511903,-767.36834251,0.00021911,2]
[387127956,1758587511912,-399.63165749,0.00021911,2]
[387127957,1758587511936,-13.64890031,0.00021911,2]
[387127958,1758587511945,-400.0,0.00021911,2]
[387127959,1758587511954,-894.22,0.00021911,2]
[387127960,1758587511963,-249.0331978,0.00021911,2]
[387127961,1758587511975,-159.94451857,0.00021911,2]
[387127962,1758587511985,-400.0,0.00021911,2]
[387127963,1758587511994,-400.0,0.00021911,2]
[387127964,1758587512003,-400.0,0.00021911,2]
[387127965,1758587512011,-474.79,0.00021911,2]
[387127966,1758587512021,-308.60409704,0.00021911,2]
[387127967,1758587578659,147.16,0.00015794,2]
[387127968,1758587578685,8.5,0.00015794,2]
[387127969,1758587592828,160.0,0.000301,120]
[387127970,1758587626940,283.0,0.0001804,2]
[387127971,1758587627308,283.0,0.0001704,2]
[387127974,1758587884035,153.06,9.604e-05,2]
[387127975,1758587884261,153.06,0.00010343,2]
[387127976,1758587884488,153.06,0.00011081,2]
[387127977,1758587885073,153.06,0.0001182,2]
[387127978,1758587885186,153.06,0.00012559,2]
[387127979,1758587885269,153.06,0.00013298,2]
[387127980,1758587885675,153.06,0.00014036,2]
[387127981,1758587885893,153.06,0.00014775,2]
[387127982,1758587886107,153.06,0.00015514,2]
[387127983,1758587886320,153.06,0.00016253,2]
[387127984,1758587886542,153.06,0.00016992,2]
[387127985,1758587886765,153.06,0.0001773,2]
[387127986,1758587886969,153.06,0.00018469,2]
[387127987,1758588020719,192.01,0.00028404,120]
[387127988,1758588125992,250.0,0.00015,2]
[387127989,1758588127085,300.0,0.00017,2]
[387127990,1758588337332,-200.988297,0.00018591,2]
[387127991,1758588339494,-296.51034598,0.00018591,2]
[387127992,1758588348192,-180.188297,0.00018591,2]
[387127993,1758588359989,-2070.04,0.00018591,2]
[387127994,1758588372180,-1891.36,0.00018591,2]
[387127995,1758588384328,-1808.25,0.00018591,2]
[387127996,1758588401478,-1800.37,0.00018591,2]
[387127997,1758588418694,-2345.09,0.00018591,2]
[387127998,1758588441432,-150.0,0.00018591,2]
[387127999,1758588441456,-126.50380102,0.00018591,2]
[387128000,1758588443650,-23.719259,0.00018591,2]
[387128001,1758588443675,-130.210741,0.0001864,2]
[387128002,1758588445499,-159.67,0.0001864,2]
[387128003,1758588447646,-210.119259,0.0001864,2]
[387128004,1758588447670,-152.16198076,0.0001864,2]
[387128005,1758588451842,-246.07,0.0001864,2]
[387128006,1758588461891,-271.52592093,0.00018605,2]
[387128007,1758588465697,-60.03407907,0.00018605,2]
[387128008,1758588465723,-101.76801924,0.0001864,2]
[387128009,1758588465749,-52.88615156,0.0001864,2]
[387128010,1758588468418,-162.47699155,0.0001864,2]
[387128011,1758588472112,-152.85379687,0.0001864,2]
[387128012,1758588512576,150.0,0.00018581,7]
[387128013,1758588569921,150.0,0.00018414,20]
[387128014,1758588572191,981.81926748,0.00018567,2]
[387128015,1758588572218,21087.29073252,0.00018567,2]
[387128020,1758588631573,-300.0,0.0001864,2]
[387128021,1758588631583,-1200.0,0.0001864,2]
[387128022,1758588631593,-11778.34,0.00018641,2]
[387128023,1758588631603,-299.999,0.00018708,2]
[387128024,1758588631613,-265.77,0.0001874,2]
[387128025,1758588631623,-192.01,0.00018936,2]
[387128026,1758588631632,-350.0,0.00019,2]
[387128027,1758588631642,-283.0,0.0001903,2]
[387128028,1758588631655,-1986.78,0.00019058,2]
[387128029,1758588631664,-6154.57313482,0.00019088,2]
[387128030,1758588631701,-664.1408851,0.00019088,2]
[387128032,1758588631712,-645.48270648,0.00019088,2]
[387128033,1758588631724,-2264.31282265,0.00019088,2]
[387128034,1758588631736,-1758.00045095,0.00019088,2]
[387128035,1758588631746,-594.44,0.00019091,2]
[387128036,1758588631756,-1000.0,0.00019119,2]
[387128037,1758588631766,-174.07,0.00019156,2]
[387128038,1758588631776,-1098.61307382,0.00019178,2]
[387128039,1758588631855,-1.38692618,0.00019178,2]
[387128040,1758588631865,-162.74,0.00019195,2]
[387128041,1758588631875,-153.06,0.00019208,2]
[387128042,1758588631885,-150.0,0.00019208,2]
[387128043,1758588631895,-150.0,0.00019208,2]
[387128044,1758588631905,-226.01307381,0.00019282,2]
[387128045,1758588631918,-789.20300167,0.00019282,2]
[387128046,1758588631954,-2421.32392452,0.00019282,2]
[387128048,1758588631964,-250.0,0.00019364,2]
[387128050,1758588631973,-400.0,0.00019452,2]
[387128051,1758588631983,-151.0,0.00019469,2]
[387128052,1758588631992,-151.0,0.00019471,2]
[387128053,1758588632002,-188.95,0.00019485,2]
[387128054,1758588632012,-331.56,0.00019535,2]
[387128055,1758588632021,-1000.0,0.00019539,2]
[387128056,1758588632031,-20824.9960617,0.00019898,2]
[387128057,1758588632040,-2500.0,0.00019898,2]
[387128058,1758588632050,-1000.0,0.00019899,2]
[387128059,1758588632059,-5000.0,0.00019899,2]
[387128060,1758588632069,-2963.8274,0.000199,2]
[387128061,1758588632081,-74053.5515,0.000199,2]
[387128062,1758588632092,-544.52471057,0.00019907,2]
[387128063,1758588632102,-1130.25,0.00019938,2]
[387128064,1758588632111,-226.0,0.0001997,2]
[387128065,1758588632122,-180.86742307,0.00019972,2]
[387128066,1758588632131,-516.23662642,0.00019972,2]
[387128067,1758588632140,-279.72882712,0.00019972,2]
[387128069,1758588632151,-500.0,0.00019973,2]
[387128072,1758588632161,-500.0,0.00019973,2]
[387128075,1758588632171,-500.0,0.00019973,2]
[387128078,1758588632181,-159.34895982,0.00019973,2]
[387128081,1758588632190,-500.0,0.00019973,2]
[387128084,1758588632199,-500.0,0.00019973,2]
[387128087,1758588632208,-1914.3,0.00019987,2]
[387128090,1758588632218,-858.97,0.00019987,2]
[387128093,1758588632227,-151.0,0.00019995,2]
[387128096,1758588632237,-400.0,0.00019996,2]
[387128099,1758588632246,-400.0,0.00019997,2]
[387128102,1758588632255,-400.0,0.00019997,2]
[387128105,1758588632265,-400.0,0.00019997,2]
[387128108,1758588632274,-400.0,0.00019997,2]
[387128111,1758588632283,-400.0,0.00019997,2]
[387128114,1758588632293,-400.0,0.00019997,2]
[387128117,1758588632303,-433.86,0.00019997,2]
[387128120,1758588632312,-400.0,0.00019997,2]
[387128123,1758588632322,-400.0,0.00019997,2]
[387128126,1758588632332,-400.0,0.00019997,2]
[387128129,1758588632342,-400.0,0.00019997,2]
[387128132,1758588632351,-400.0,0.00019997,2]
[387128135,1758588632361,-400.0,0.00019997,2]
[387128138,1758588632371,-404.13667526,0.00019997,2]
[387128141,1758588632380,-400.0,0.00019997,2]
[387128143,1758588632390,-400.0,0.00019997,2]
[387128146,1758588632399,-400.0,0.00019997,2]
[387128149,1758588632410,-400.0,0.00019997,2]
[387128151,1758588632419,-400.0,0.00019997,2]
[387128152,1758588632429,-400.0,0.00019997,2]
[387128153,1758588632438,-400.0,0.00019997,2]
[387128154,1758588632447,-400.0,0.00019997,2]
[387128155,1758588632457,-500.0,0.00019997,2]
[387128156,1758588632467,-400.0,0.00019997,2]
[387128157,1758588632476,-400.0,0.00019997,2]
[387128158,1758588632485,-400.0,0.00019997,2]
[387128159,1758588632495,-400.38017418,0.00019997,2]
[387128160,1758588632504,-400.0,0.00019997,2]
[387128161,1758588632514,-400.0,0.00019997,2]
[387128162,1758588632523,-400.0,0.00019997,2]
[387128163,1758588632532,-400.0,0.00019997,2]
[387128164,1758588632542,-400.0,0.00019997,2]
[387128165,1758588632551,-400.0,0.00019997,2]
[387128166,1758588632560,-400.0,0.00019997,2]
[387128167,1758588632570,-400.0,0.00019997,2]
[387128168,1758588632580,-400.0,0.00019997,2]
[387128169,1758588632589,-400.0,0.00019997,2]
[387128170,1758588632598,-400.0,0.00019997,2]
[387128171,1758588632608,-400.0,0.00019997,2]
[387128172,1758588632617,-400.0,0.00019997,2]
[387128173,1758588632627,-400.0,0.00019997,2]
[387128174,1758588632636,-400.0,0.00019997,2]
[387128175,1758588632646,-400.0,0.00019997,2]
[387128176,1758588632655,-400.0,0.00019997,2]
[387128177,1758588632665,-400.0,0.00019997,2]
[387128178,1758588632674,-400.0,0.00019997,2]
[387128179,1758588632683,-415.1588924,0.00019997,2]
[387128180,1758588632692,-400.0,0.00019997,2]
[387128181,1758588632702,-400.0,0.00019997,2]
[387128182,1758588632711,-400.0,0.00019997,2]
[387128183,1758588632721,-400.0,0.00019997,2]
[387128184,1758588632730,-400.0,0.00019997,2]
[387128185,1758588632982,-400.0,0.00019997,2]
[387128186,1758588633006,-400.0,0.00019997,2]
[387128187,1758588633016,-400.0,0.00019997,2]
[387128188,1758588633026,-400.0,0.00019997,2]
[387128189,1758588633036,-400.0,0.00019997,2]
[387128190,1758588633046,-400.0,0.00019997,2]
[387128191,1758588633056,-400.0,0.00019997,2]
[387128192,1758588633066,-400.0,0.00019997,2]
[387128193,1758588633080,-400.0,0.00019997,2]
[387128194,1758588633089,-400.0,0.00019997,2]
[387128195,1758588633100,-400.0,0.00019997,2]
[387128196,1758588633110,-400.0,0.00019997,2]
[387128197,1758588633124,-400.0,0.00019997,2]
[387128198,1758588633135,-400.0,0.00019997,2]
[387128199,1758588633144,-544.41900766,0.00019997,2]
[387128200,1758588633160,-400.0,0.00019997,2]
[387128201,1758588633170,-400.0,0.00019997,2]
[387128202,1758588633180,-400.0,0.00019997,2]
[387128203,1758588633190,-400.0,0.00019997,2]
[387128204,1758588633200,-400.0,0.00019997,2]
[387128205,1758588633210,-400.0,0.00019997,2]
[387128206,1758588633220,-500.0,0.00019997,2]
[387128207,1758588633231,-400.0,0.00019997,2]
[387128208,1758588633241,-400.0,0.00019997,2]
[387128209,1758588633250,-400.0,0.00019997,2]
[387128210,1758588633261,-400.0,0.00019997,2]
[387128211,1758588633271,-400.0,0.00019997,2]
[387128212,1758588633281,-400.0,0.00019997,2]
[387128213,1758588633291,-400.0,0.00019997,2]
[387128214,1758588633301,-400.0,0.00019997,2]
[387128215,1758588633311,-400.0,0.00019997,2]
[387128216,1758588633321,-400.0,0.00019997,2]
[387128217,1758588633331,-400.0,0.00019997,2]
[387128218,1758588633341,-400.0,0.00019997,2]
[387128219,1758588633353,-457.0,0.00019997,2]
[387128220,1758588633363,-400.0,0.00019997,2]
[387128221,1758588633373,-400.0,0.00019997,2]
[387128222,1758588633383,-400.0,0.00019997,2]
[387128223,1758588633393,-400.0,0.00019997,2]
[387128224,1758588633403,-400.0,0.00019997,2]
[387128225,1758588633413,-400.0,0.00019997,2]
[387128226,1758588633422,-400.0,0.00019997,2]
[387128227,1758588633432,-400.0,0.00019997,2]
[387128228,1758588633442,-417.58,0.00019997,2]
[387128229,1758588633452,-400.0,0.00019997,2]
[387128230,1758588633461,-400.0,0.00019997,2]
[387128231,1758588633471,-400.0,0.00019997,2]
[387128232,1758588633481,-400.0,0.00019997,2]
[387128233,1758588633491,-400.0,0.00019997,2]
[387128234,1758588633501,-400.0,0.00019997,2]
[387128235,1758588633512,-400.0,0.00019997,2]
[387128236,1758588633522,-400.0,0.00019997,2]
[387128237,1758588633532,-400.0,0.00019997,2]
[387128238,1758588633543,-400.0,0.00019997,2]
[387128239,1758588633554,-400.0,0.00019997,2]
[387128240,1758588633565,-400.0,0.00019997,2]
[387128241,1758588633575,-400.0,0.00019997,2]
[387128242,1758588633585,-400.0,0.00019997,2]
[387128243,1758588633597,-400.0,0.00019997,2]
[387128244,1758588633610,-400.0,0.00019997,2]
[387128245,1758588633620,-400.0,0.00019997,2]
[387128246,1758588633631,-400.0,0.00019997,2]
[387128247,1758588633642,-400.0,0.00019997,2]
[387128248,1758588633652,-400.0,0.00019997,2]
[387128249,1758588633663,-400.0,0.00019997,2]
[387128250,1758588633675,-400.0,0.00019997,2]
[387128251,1758588633684,-400.0,0.00019997,2]
[387128252,1758588633695,-400.0,0.00019997,2]
[387128253,1758588633705,-400.0,0.00019997,2]
[387128254,1758588633715,-400.0,0.00019997,2]
[387128255,1758588633725,-400.0,0.00019997,2]
[387128256,1758588633736,-400.0,0.00019997,2]
[387128257,1758588633746,-400.0,0.00019997,2]
[387128258,1758588633756,-400.0,0.00019997,2]
[387128259,1758588633765,-400.0,0.00019997,2]
[387128260,1758588633776,-400.0,0.00019997,2]
[387128261,1758588633786,-400.0,0.00019997,2]
[387128262,1758588633796,-400.0,0.00019997,2]
[387128263,1758588633806,-400.0,0.00019997,2]
[387128264,1758588633816,-400.0,0.00019997,2]
[387128265,1758588633826,-400.0,0.00019997,2]
[387128266,1758588633836,-400.0,0.00019997,2]
[387128267,1758588633846,-400.0,0.00019997,2]
[387128268,1758588633858,-400.0,0.00019997,2]
[387128269,1758588633869,-400.0,0.00019997,2]
[387128270,1758588633880,-205.18005706,0.00019997,2]
[387128271,1758588633890,-729.73,0.00019997,2]
[387128272,1758588633899,-400.0,0.00019997,2]
[387128273,1758588633909,-400.0,0.00019997,2]
[387128274,1758588633919,-400.0,0.00019997,2]
[387128275,1758588633929,-400.0,0.00019997,2]
[387128276,1758588633947,-400.0,0.00019997,2]
[387128277,1758588633956,-400.0,0.00019997,2]
[387128278,1758588633967,-400.0,0.00019997,2]
[387128279,1758588633977,-1262.42,0.00019997,2]
[387128280,1758588633987,-400.0,0.00019997,2]
[387128281,1758588633997,-400.0,0.00019997,2]
[387128282,1758588634008,-400.0,0.00019997,2]
[387128283,1758588634017,-400.0,0.00019997,2]
[387128284,1758588634027,-400.0,0.00019997,2]
[387128285,1758588634036,-400.0,0.00019997,2]
[387128286,1758588634047,-400.0,0.00019997,2]
[387128287,1758588634058,-402.51,0.00019997,2]
[387128288,1758588634067,-400.0,0.00019997,2]
[387128289,1758588634082,-400.0,0.00019997,2]
[387128290,1758588634092,-400.0,0.00019997,2]
[387128291,1758588634102,-400.0,0.00019997,2]
[387128292,1758588634112,-400.0,0.00019997,2]
[387128293,1758588634123,-796.01,0.00019997,2]
[387128294,1758588634134,-400.0,0.00019997,2]
[387128295,1758588634144,-400.0,0.00019997,2]
[387128296,1758588634153,-400.0,0.00019997,2]
[387128297,1758588634165,-400.0,0.00019997,2]
[387128298,1758588634184,-400.0,0.00019997,2]
[387128299,1758588634195,-400.0,0.00019997,2]
[387128300,1758588634205,-431.35,0.00019997,2]
[387128301,1758588634215,-400.0,0.00019997,2]
[387128302,1758588634225,-2335.81,0.00019997,2]
[387128303,1758588634234,-400.0,0.00019997,2]
[387128304,1758588634244,-400.0,0.00019997,2]
[387128305,1758588634253,-1029.46,0.00019997,2]
[387128306,1758588634263,-400.0,0.00019997,2]
[387128307,1758588634272,-400.0,0.00019997,2]
[387128308,1758588634281,-400.0,0.00019997,2]
[387128309,1758588634290,-400.0,0.00019997,2]
[387128310,1758588634300,-400.0,0.00019997,2]
[387128311,1758588634309,-465.65,0.00019997,2]
[387128312,1758588634319,-400.0,0.00019997,2]
[387128313,1758588634328,-400.0,0.00019997,2]
[387128314,1758588634338,-400.0,0.00019997,2]
[387128315,1758588634347,-1832.67,0.00019997,2]
[387128316,1758588634357,-400.0,0.00019997,2]
[387128317,1758588634367,-400.0,0.00019997,2]
[387128318,1758588634376,-400.0,0.00019997,2]
[387128319,1758588634386,-400.0,0.00019997,2]
[387128320,1758588634395,-400.0,0.00019997,2]
[387128321,1758588634405,-400.0,0.00019997,2]
[387128322,1758588634414,-400.0,0.00019997,2]
[387128323,1758588634423,-400.0,0.00019997,2]
[387128324,1758588634432,-400.0,0.00019997,2]
[387128325,1758588634442,-400.0,0.00019997,2]
[387128326,1758588634451,-400.0,0.00019997,2]
[387128327,1758588634461,-400.0,0.00019997,2]
[387128328,1758588634471,-1616.25,0.00019997,2]
[387128329,1758588634480,-400.0,0.00019997,2]
[387128330,1758588634490,-400.0,0.00019997,2]
[387128331,1758588634500,-400.0,0.00019997,2]
[387128332,1758588634509,-400.0,0.00019997,2]
[387128333,1758588634518,-400.0,0.00019997,2]
[387128334,1758588634528,-400.0,0.00019997,2]
[387128335,1758588634537,-400.0,0.00019997,2]
[387128336,1758588634546,-836.01,0.00019997,2]
[387128337,1758588634555,-400.0,0.00019997,2]
[387128338,1758588634565,-400.0,0.00019997,2]
[387128339,1758588634575,-400.0,0.00019997,2]
[387128340,1758588634584,-400.0,0.00019997,2]
[387128341,1758588634594,-400.0,0.00019997,2]
[387128342,1758588634603,-400.0,0.00019997,2]
[387128343,1758588634613,-400.0,0.00019997,2]
[387128344,1758588634622,-400.0,0.00019997,2]
[387128345,1758588634632,-400.0,0.00019997,2]
[387128346,1758588634641,-400.0,0.00019997,2]
[387128347,1758588634651,-522.0,0.00019997,2]
[387128348,1758588634660,-1061.09,0.00019997,2]
[387128349,1758588634669,-400.0,0.00019997,2]
[387128350,1758588634679,-400.0,0.00019997,2]
[387128351,1758588634689,-400.0,0.00019997,2]
[387128352,1758588634699,-400.0,0.00019997,2]
[387128353,1758588634711,-400.0,0.00019997,2]
[387128354,1758588634721,-400.0,0.00019997,2]
[387128355,1758588634731,-400.0,0.00019997,2]
[387128356,1758588634741,-400.0,0.00019997,2]
[387128357,1758588634751,-400.0,0.00019997,2]
[387128358,1758588634761,-500.0,0.00019997,2]
[387128359,1758588634771,-400.0,0.00019997,2]
[387128360,1758588634781,-400.0,0.00019997,2]
[387128361,1758588634790,-400.0,0.00019997,2]
[387128362,1758588634802,-400.0,0.00019997,2]
[387128363,1758588634817,-500.0,0.00019997,2]
[387128364,1758588634827,-400.0,0.00019997,2]
[387128365,1758588634836,-3384.62,0.00019997,2]
[387128366,1758588634846,-400.0,0.00019997,2]
[387128367,1758588634855,-400.0,0.00019997,2]
[387128368,1758588634865,-400.0,0.00019997,2]
[387128369,1758588634875,-394.47058463,0.00019997,2]
[387128370,1758588634885,-400.0,0.00019997,2]
[387128371,1758588634894,-400.0,0.00019997,2]
[387128372,1758588634903,-400.0,0.00019997,2]
[387128373,1758588634913,-400.0,0.00019997,2]
[387128374,1758588634922,-400.0,0.00019997,2]
[387128375,1758588634931,-400.0,0.00019997,2]
[387128376,1758588634941,-400.0,0.00019997,2]
[387128377,1758588634950,-426.01889692,0.00019997,2]
[387128378,1758588634960,-2060.76,0.00019997,2]
[387128379,1758588634970,-400.0,0.00019997,2]
[387128380,1758588634979,-1000.0,0.00019997,2]
[387128381,1758588634989,-400.0,0.00019997,2]
[387128382,1758588634999,-530.11,0.00019997,2]
[387128383,1758588635009,-530.0,0.00019997,2]
[387128384,1758588635018,-400.0,0.00019997,2]
[387128385,1758588635028,-922.13,0.00019997,2]
[387128386,1758588635037,-400.0,0.00019997,2]
[387128387,1758588635047,-400.0,0.00019997,2]
[387128388,1758588635056,-400.0,0.00019997,2]
[387128389,1758588635066,-400.0,0.00019997,2]
[387128390,1758588635080,-400.0,0.00019997,2]
[387128391,1758588635090,-754.65,0.00019997,2]
[387128392,1758588635099,-400.0,0.00019997,2]
[387128393,1758588635110,-400.0,0.00019997,2]
[387128394,1758588635121,-400.0,0.00019997,2]
[387128395,1758588635131,-400.0,0.00019997,2]
[387128396,1758588635141,-400.0,0.00019997,2]
[387128397,1758588635153,-400.0,0.00019997,2]
[387128398,1758588635162,-400.0,0.00019997,2]
[387128399,1758588635173,-508.94,0.00019997,2]
[387128400,1758588635188,-400.0,0.00019997,2]
[387128401,1758588635197,-1169.65,0.00019997,2]
[387128402,1758588635207,-400.0,0.00019997,2]
[387128403,1758588635217,-400.0,0.00019997,2]
[387128404,1758588635226,-400.0,0.00019997,2]
[387128405,1758588635235,-400.0,0.00019998,2]
[387128406,1758588635245,-400.0,0.00019998,2]
[387128407,1758588635255,-439.92,0.00019998,2]
[387128408,1758588635264,-400.0,0.00019998,2]
[387128409,1758588635274,-400.0,0.00019998,2]
[387128410,1758588635283,-400.0,0.00019998,2]
[387128411,1758588635292,-400.0,0.00019998,2]
[387128412,1758588635302,-400.0,0.00019998,2]
[387128413,1758588635311,-400.0,0.00019998,2]
[387128414,1758588635321,-400.0,0.00019998,2]
[387128415,1758588635330,-400.0,0.00019998,2]
[387128416,1758588635340,-400.0,0.00019998,2]
[387128417,1758588635349,-400.0,0.00019998,2]
[387128418,1758588635359,-400.0,0.00019998,2]
[387128419,1758588635368,-400.0,0.00019998,2]
[387128420,1758588635378,-400.0,0.00019998,2]
[387128421,1758588635387,-400.0,0.00019998,2]
[387128422,1758588635397,-400.0,0.00019998,2]
[387128423,1758588635406,-400.0,0.00019998,2]
[387128424,1758588635415,-400.0,0.00019998,2]
[387128425,1758588635425,-400.0,0.00019998,2]
[387128426,1758588635434,-400.0,0.00019998,2]
[387128427,1758588635443,-400.0,0.00019998,2]
[387128428,1758588635453,-400.0,0.00019998,2]
[387128429,1758588635463,-400.0,0.00019998,2]
[387128430,1758588635473,-400.0,0.00019998,2]
[387128431,1758588635482,-400.0,0.00019998,2]
[387128432,1758588635492,-400.0,0.00019998,2]
[387128433,1758588635501,-400.0,0.00019998,2]
[387128434,1758588635510,-400.0,0.00019998,2]
[387128435,1758588635520,-400.0,0.00019998,2]
[387128436,1758588635529,-400.0,0.00019998,2]
[387128437,1758588635538,-400.0,0.00019998,2]
[387128438,1758588635547,-400.0,0.00019998,2]
[387128439,1758588635557,-400.0,0.00019998,2]
[387128440,1758588635566,-400.0,0.00019998,2]
[387128441,1758588635576,-400.0,0.00019998,2]
[387128442,1758588635585,-400.0,0.00019998,2]
[387128443,1758588635595,-400.0,0.00019998,2]
[387128444,1758588635604,-400.0,0.00019998,2]
[387128445,1758588635613,-400.0,0.00019998,2]
[387128446,1758588635622,-400.0,0.00019998,2]
[387128447,1758588635632,-400.0,0.00019998,2]
[387128448,1758588635641,-400.0,0.00019998,2]
[387128449,1758588635651,-674.13,0.00019998,2]
[387128450,1758588635660,-400.0,0.00019998,2]
[387128451,1758588635669,-400.0,0.00019998,2]
[387128452,1758588635679,-400.0,0.00019998,2]
[387128453,1758588635688,-400.0,0.00019998,2]
[387128454,1758588635698,-400.0,0.00019998,2]
[387128455,1758588635707,-490.65,0.00019998,2]
[387128456,1758588635717,-400.96640645,0.00019998,2]
[387128457,1758588635726,-400.0,0.00019998,2]
[387128458,1758588635735,-400.0,0.00019998,2]
[387128459,1758588635745,-500.0,0.00019998,2]
[387128460,1758588635755,-400.0,0.00019998,2]
[387128461,1758588635764,-400.0,0.00019998,2]
[387128462,1758588635773,-400.0,0.00019998,2]
[387128463,1758588635783,-400.0,0.00019998,2]
[387128464,1758588635792,-400.0,0.00019998,2]
[387128465,1758588635802,-400.0,0.00019998,2]
[387128466,1758588635811,-400.0,0.00019998,2]
[387128467,1758588635821,-400.0,0.00019998,2]
[387128468,1758588635831,-400.0,0.00019998,2]
[387128469,1758588635840,-410.63,0.00019998,2]
[387128470,1758588635849,-400.0,0.00019998,2]
[387128471,1758588635859,-400.0,0.00019998,2]
[387128472,1758588635869,-400.0,0.00019998,2]
[387128473,1758588635879,-400.0,0.00019998,2]
[387128474,1758588635888,-400.0,0.00019998,2]
[387128475,1758588635898,-400.0,0.00019998,2]
[387128476,1758588635907,-750.91,0.00019998,2]
[387128477,1758588635917,-400.0,0.00019998,2]
[387128478,1758588635927,-400.0,0.00019998,2]
[387128479,1758588635937,-400.0,0.00019998,2]
[387128480,1758588635948,-554.46,0.00019998,2]
[387128481,1758588635958,-400.0,0.00019998,2]
[387128482,1758588635968,-544.47,0.00019998,2]
[387128483,1758588635978,-400.0,0.00019998,2]
[387128484,1758588635987,-408.49141288,0.00019998,2]
[387128485,1758588635996,-400.0,0.00019998,2]
[387128486,1758588636004,-400.0,0.00019998,2]
[387128487,1758588636014,-400.0,0.00019998,2]
[387128488,1758588636024,-401.94383944,0.00019998,2]
[387128489,1758588636034,-859.26,0.00019998,2]
[387128490,1758588636044,-400.0,0.00019998,2]
[387128491,1758588636053,-400.0,0.00019998,2]
[387128492,1758588636062,-400.0,0.00019998,2]
[387128493,1758588636071,-400.0,0.00019998,2]
[387128494,1758588636084,-400.0,0.00019998,2]
[387128495,1758588636095,-400.0,0.00019998,2]
[387128496,1758588636104,-400.0,0.00019998,2]
[387128497,1758588636114,-400.0,0.00019998,2]
[387128498,1758588636124,-400.0,0.00019998,2]
[387128499,1758588636134,-660.35,0.00019998,2]
[387128500,1758588636143,-400.0,0.00019998,2]
[387128501,1758588636154,-410.37,0.00019998,2]
[387128502,1758588636165,-400.0,0.00019998,2]
[387128503,1758588636174,-400.0,0.00019998,2]